Workbook

Sheet Solicitud
C4: Ingrese los datos de Cotización
B6: Cantidad Reg act | C6: =I42 -> 0 | E6: Check general | F6: Contador v2 | G6: Fecha | H6: 2021-05-31
F7: =IF(E9>30000000,IF(COUNTIF(F9:F32,"=ok")>=7,"ok",""),IF(COUNTIF(F9:F32,"=ok")=9,"ok","")) -> 
C8: 1. CONTRATANTE / EMPLEADOR | F8: Check | H8: precio final
C9: RUT (SIN PUNTOS,SIN DV) | F9: =IF(dvrut(G25)="Incorrecto", "Rut o DV incorrecto","ok") -> Rut o DV incorrecto
C10: DIGITO VERIFICADOR | F10: =IF(E10="","Favor completar datos","ok") -> Favor completar datos
C11: NOMBRE/RAZON SOCIAL | F11: =IF(E11="","Favor completar datos","ok") -> Favor completar datos
C12: APELLIDO PATERNO | F12: =IF(E9>50000000,"",IF(E12="","Favor completar datos","ok")) -> Favor completar datos
C13: APELLIDO MATERNO | F13: =IF(E9>50000000,"",IF(E13="","Favor completar datos","ok")) -> Favor completar datos
C14: CALLE / DIRECCIÓN | F14: =IF(E14="","Favor completar datos","ok") -> Favor completar datos
C15: COMUNA | F15: =IF(E15="","Favor completar datos","ok") -> Favor completar datos
C16: E-MAIL CONTRATANTE | F16: =IF(E16="","Favor completar datos","ok") -> Favor completar datos
G19: <- quitar
G21: =Validaciones!C35 -> -44357
G25: =_xlfn.CONCAT(E9,"-",E10) -> -
C26: 2.TARIFA
C27: TARIFA NETA UNITARIA UF | E27: =Validaciones!K40 -> 0.387
C28: TARIFA FINAL (BRUTA) UF | E28: =ROUND((E27*0.57*1.19),3)+ROUND(E27*(1-0.57),3) -> 0.429
C30: 3.OTROS
C31: FECHA DE INICIO | F31: =IF(AND(E31<>"",G21<0),"Fecha invalida",IF(G21>10,"Revisar Inicio vigencia",IF(E31="","Favor completar datos","ok"))) -> Favor completar datos
C32: FECHA DE TERMINO | E32: =IF(E31="","",E31+365) -> 
C34: CANTIDAD DE ASEGURADOS | E34: =COUNTIF(I45:I544,"Ok") -> 0
C35: PRIMA TOTAL A PAGAR UF | E35: =COUNTIF(I45:I544,"Ok")*E28 -> 0
C36: PRIMA TOTAL A TRANSFERIR $ | E36: =IFERROR(ROUND(E35*VLOOKUP(E31,PARAMETROS!M:N,2,1),0),"") -> 
E38: =IF(AND(F7="ok",I43="ok"), "Formulario apto para ser enviado", "Revisar Validaciones") -> Revisar Validaciones
I42: =COUNTIF(I44:I93,"=ok") -> 0
C43: ASEGURADO MULTIPLES | I43: =IF(AND(COUNTIF(I45:I144,"=Datos erroneos o incompletos")=0,COUNTIF(I45:I144,"=ok")>0),"ok","Revisar datos") -> Revisar datos
B44: Check Rut | C44: RUT | D44: DV | E44: Nombre | F44: Apellido Paterno | G44: Apellido Materno | H44: Email Asegurado (Opcional) | I44: Check Datos
A45: =IF(C45<>"",_xlfn.CONCAT(C45,"-",D45),"") ->  | B45: =IF(C45<>"",IF(dvrut(A45)="Incorrecto", "Rut o DV incorrecto","ok"),"") ->  | I45: =IF(C45="","",IF(AND(C45="",D45="",E45="",F45="",G45=""),"Completar datos",IF(AND(B45="ok",C45<>"",D45<>"",E45<>"",F45<>"",G45<>""),"ok","Datos erroneos o incompletos"))) -> 
B46: =IF(C46<>"",IF(dvrut(A46)="Incorrecto", "Rut o DV incorrecto","ok"),"") ->  | I46: =IF(C46="","",IF(AND(C46="",D46="",E46="",F46="",G46=""),"Completar datos",IF(AND(B46="ok",C46<>"",D46<>"",E46<>"",F46<>"",G46<>""),"ok","Datos erroneos o incompletos"))) -> 
B47: =IF(C47<>"",IF(dvrut(A47)="Incorrecto", "Rut o DV incorrecto","ok"),"") -> 
B48: =IF(C48<>"",IF(dvrut(A48)="Incorrecto", "Rut o DV incorrecto","ok"),"") -> 
B49: =IF(C49<>"",IF(dvrut(A49)="Incorrecto", "Rut o DV incorrecto","ok"),"") -> 
B50: =IF(C50<>"",IF(dvrut(A50)="Incorrecto", "Rut o DV incorrecto","ok"),"") -> 
B51: =IF(C51<>"",IF(dvrut(A51)="Incorrecto", "Rut o DV incorrecto","ok"),"") -> 
B52: =IF(C52<>"",IF(dvrut(A52)="Incorrecto", "Rut o DV incorrecto","ok"),"") -> 
B53: =IF(C53<>"",IF(dvrut(A53)="Incorrecto", "Rut o DV incorrecto","ok"),"") -> 
B54: =IF(C54<>"",IF(dvrut(A54)="Incorrecto", "Rut o DV incorrecto","ok"),"") -> 
B55: =IF(C55<>"",IF(dvrut(A55)="Incorrecto", "Rut o DV incorrecto","ok"),"") -> 
B56: =IF(C56<>"",IF(dvrut(A56)="Incorrecto", "Rut o DV incorrecto","ok"),"") -> 
B57: =IF(C57<>"",IF(dvrut(A57)="Incorrecto", "Rut o DV incorrecto","ok"),"") -> 
B58: =IF(C58<>"",IF(dvrut(A58)="Incorrecto", "Rut o DV incorrecto","ok"),"") -> 
B59: =IF(C59<>"",IF(dvrut(A59)="Incorrecto", "Rut o DV incorrecto","ok"),"") -> 
B60: =IF(C60<>"",IF(dvrut(A60)="Incorrecto", "Rut o DV incorrecto","ok"),"") -> 
B61: =IF(C61<>"",IF(dvrut(A61)="Incorrecto", "Rut o DV incorrecto","ok"),"") -> 
B62: =IF(C62<>"",IF(dvrut(A62)="Incorrecto", "Rut o DV incorrecto","ok"),"") -> 
B63: =IF(C63<>"",IF(dvrut(A63)="Incorrecto", "Rut o DV incorrecto","ok"),"") -> 
B64: =IF(C64<>"",IF(dvrut(A64)="Incorrecto", "Rut o DV incorrecto","ok"),"") -> 
B65: =IF(C65<>"",IF(dvrut(A65)="Incorrecto", "Rut o DV incorrecto","ok"),"") -> 
B66: =IF(C66<>"",IF(dvrut(A66)="Incorrecto", "Rut o DV incorrecto","ok"),"") -> 
B67: =IF(C67<>"",IF(dvrut(A67)="Incorrecto", "Rut o DV incorrecto","ok"),"") -> 
B68: =IF(C68<>"",IF(dvrut(A68)="Incorrecto", "Rut o DV incorrecto","ok"),"") -> 
B69: =IF(C69<>"",IF(dvrut(A69)="Incorrecto", "Rut o DV incorrecto","ok"),"") -> 
B70: =IF(C70<>"",IF(dvrut(A70)="Incorrecto", "Rut o DV incorrecto","ok"),"") -> 
B71: =IF(C71<>"",IF(dvrut(A71)="Incorrecto", "Rut o DV incorrecto","ok"),"") -> 
B72: =IF(C72<>"",IF(dvrut(A72)="Incorrecto", "Rut o DV incorrecto","ok"),"") -> 
B73: =IF(C73<>"",IF(dvrut(A73)="Incorrecto", "Rut o DV incorrecto","ok"),"") -> 
B74: =IF(C74<>"",IF(dvrut(A74)="Incorrecto", "Rut o DV incorrecto","ok"),"") -> 
B75: =IF(C75<>"",IF(dvrut(A75)="Incorrecto", "Rut o DV incorrecto","ok"),"") -> 
B76: =IF(C76<>"",IF(dvrut(A76)="Incorrecto", "Rut o DV incorrecto","ok"),"") -> 
A77: =IF(C77<>"",_xlfn.CONCAT(C77,"-",D77),"") ->  | B77: =IF(C77<>"",IF(dvrut(A77)="Incorrecto", "Rut o DV incorrecto","ok"),"") -> 
B78: =IF(C78<>"",IF(dvrut(A78)="Incorrecto", "Rut o DV incorrecto","ok"),"") -> 
B79: =IF(C79<>"",IF(dvrut(A79)="Incorrecto", "Rut o DV incorrecto","ok"),"") -> 
B80: =IF(C80<>"",IF(dvrut(A80)="Incorrecto", "Rut o DV incorrecto","ok"),"") -> 
B81: =IF(C81<>"",IF(dvrut(A81)="Incorrecto", "Rut o DV incorrecto","ok"),"") -> 
B82: =IF(C82<>"",IF(dvrut(A82)="Incorrecto", "Rut o DV incorrecto","ok"),"") -> 
B83: =IF(C83<>"",IF(dvrut(A83)="Incorrecto", "Rut o DV incorrecto","ok"),"") -> 
B84: =IF(C84<>"",IF(dvrut(A84)="Incorrecto", "Rut o DV incorrecto","ok"),"") -> 
B85: =IF(C85<>"",IF(dvrut(A85)="Incorrecto", "Rut o DV incorrecto","ok"),"") -> 
B86: =IF(C86<>"",IF(dvrut(A86)="Incorrecto", "Rut o DV incorrecto","ok"),"") -> 
B87: =IF(C87<>"",IF(dvrut(A87)="Incorrecto", "Rut o DV incorrecto","ok"),"") -> 
B88: =IF(C88<>"",IF(dvrut(A88)="Incorrecto", "Rut o DV incorrecto","ok"),"") -> 
B89: =IF(C89<>"",IF(dvrut(A89)="Incorrecto", "Rut o DV incorrecto","ok"),"") -> 
B90: =IF(C90<>"",IF(dvrut(A90)="Incorrecto", "Rut o DV incorrecto","ok"),"") -> 
B91: =IF(C91<>"",IF(dvrut(A91)="Incorrecto", "Rut o DV incorrecto","ok"),"") -> 
B92: =IF(C92<>"",IF(dvrut(A92)="Incorrecto", "Rut o DV incorrecto","ok"),"") -> 
B93: =IF(C93<>"",IF(dvrut(A93)="Incorrecto", "Rut o DV incorrecto","ok"),"") -> 
B94: =IF(C94<>"",IF(dvrut(A94)="Incorrecto", "Rut o DV incorrecto","ok"),"") -> 
B95: =IF(C95<>"",IF(dvrut(A95)="Incorrecto", "Rut o DV incorrecto","ok"),"") -> 
B96: =IF(C96<>"",IF(dvrut(A96)="Incorrecto", "Rut o DV incorrecto","ok"),"") -> 
B97: =IF(C97<>"",IF(dvrut(A97)="Incorrecto", "Rut o DV incorrecto","ok"),"") -> 
B98: =IF(C98<>"",IF(dvrut(A98)="Incorrecto", "Rut o DV incorrecto","ok"),"") -> 
B99: =IF(C99<>"",IF(dvrut(A99)="Incorrecto", "Rut o DV incorrecto","ok"),"") -> 
B100: =IF(C100<>"",IF(dvrut(A100)="Incorrecto", "Rut o DV incorrecto","ok"),"") -> 
B101: =IF(C101<>"",IF(dvrut(A101)="Incorrecto", "Rut o DV incorrecto","ok"),"") -> 
B102: =IF(C102<>"",IF(dvrut(A102)="Incorrecto", "Rut o DV incorrecto","ok"),"") -> 
B103: =IF(C103<>"",IF(dvrut(A103)="Incorrecto", "Rut o DV incorrecto","ok"),"") -> 
B104: =IF(C104<>"",IF(dvrut(A104)="Incorrecto", "Rut o DV incorrecto","ok"),"") -> 
B105: =IF(C105<>"",IF(dvrut(A105)="Incorrecto", "Rut o DV incorrecto","ok"),"") -> 
B106: =IF(C106<>"",IF(dvrut(A106)="Incorrecto", "Rut o DV incorrecto","ok"),"") -> 
B107: =IF(C107<>"",IF(dvrut(A107)="Incorrecto", "Rut o DV incorrecto","ok"),"") -> 
B108: =IF(C108<>"",IF(dvrut(A108)="Incorrecto", "Rut o DV incorrecto","ok"),"") -> 
B109: =IF(C109<>"",IF(dvrut(A109)="Incorrecto", "Rut o DV incorrecto","ok"),"") -> 
B110: =IF(C110<>"",IF(dvrut(A110)="Incorrecto", "Rut o DV incorrecto","ok"),"") ->  | I110: =IF(C110="","",IF(AND(C110="",D110="",E110="",F110="",G110=""),"Completar datos",IF(AND(B110="ok",C110<>"",D110<>"",E110<>"",F110<>"",G110<>""),"ok","Datos erroneos o incompletos"))) -> 
B111: =IF(C111<>"",IF(dvrut(A111)="Incorrecto", "Rut o DV incorrecto","ok"),"") -> 
B112: =IF(C112<>"",IF(dvrut(A112)="Incorrecto", "Rut o DV incorrecto","ok"),"") -> 
B113: =IF(C113<>"",IF(dvrut(A113)="Incorrecto", "Rut o DV incorrecto","ok"),"") -> 
B114: =IF(C114<>"",IF(dvrut(A114)="Incorrecto", "Rut o DV incorrecto","ok"),"") -> 
B115: =IF(C115<>"",IF(dvrut(A115)="Incorrecto", "Rut o DV incorrecto","ok"),"") -> 
B116: =IF(C116<>"",IF(dvrut(A116)="Incorrecto", "Rut o DV incorrecto","ok"),"") -> 
B117: =IF(C117<>"",IF(dvrut(A117)="Incorrecto", "Rut o DV incorrecto","ok"),"") -> 
B118: =IF(C118<>"",IF(dvrut(A118)="Incorrecto", "Rut o DV incorrecto","ok"),"") -> 
B119: =IF(C119<>"",IF(dvrut(A119)="Incorrecto", "Rut o DV incorrecto","ok"),"") -> 
B120: =IF(C120<>"",IF(dvrut(A120)="Incorrecto", "Rut o DV incorrecto","ok"),"") -> 
B121: =IF(C121<>"",IF(dvrut(A121)="Incorrecto", "Rut o DV incorrecto","ok"),"") -> 
B122: =IF(C122<>"",IF(dvrut(A122)="Incorrecto", "Rut o DV incorrecto","ok"),"") -> 
B123: =IF(C123<>"",IF(dvrut(A123)="Incorrecto", "Rut o DV incorrecto","ok"),"") -> 
B124: =IF(C124<>"",IF(dvrut(A124)="Incorrecto", "Rut o DV incorrecto","ok"),"") -> 
B125: =IF(C125<>"",IF(dvrut(A125)="Incorrecto", "Rut o DV incorrecto","ok"),"") -> 
B126: =IF(C126<>"",IF(dvrut(A126)="Incorrecto", "Rut o DV incorrecto","ok"),"") -> 
B127: =IF(C127<>"",IF(dvrut(A127)="Incorrecto", "Rut o DV incorrecto","ok"),"") -> 
B128: =IF(C128<>"",IF(dvrut(A128)="Incorrecto", "Rut o DV incorrecto","ok"),"") -> 
B129: =IF(C129<>"",IF(dvrut(A129)="Incorrecto", "Rut o DV incorrecto","ok"),"") -> 
B130: =IF(C130<>"",IF(dvrut(A130)="Incorrecto", "Rut o DV incorrecto","ok"),"") -> 
B131: =IF(C131<>"",IF(dvrut(A131)="Incorrecto", "Rut o DV incorrecto","ok"),"") -> 
B132: =IF(C132<>"",IF(dvrut(A132)="Incorrecto", "Rut o DV incorrecto","ok"),"") -> 
B133: =IF(C133<>"",IF(dvrut(A133)="Incorrecto", "Rut o DV incorrecto","ok"),"") -> 
B134: =IF(C134<>"",IF(dvrut(A134)="Incorrecto", "Rut o DV incorrecto","ok"),"") -> 
B135: =IF(C135<>"",IF(dvrut(A135)="Incorrecto", "Rut o DV incorrecto","ok"),"") -> 
B136: =IF(C136<>"",IF(dvrut(A136)="Incorrecto", "Rut o DV incorrecto","ok"),"") -> 
B137: =IF(C137<>"",IF(dvrut(A137)="Incorrecto", "Rut o DV incorrecto","ok"),"") -> 
B138: =IF(C138<>"",IF(dvrut(A138)="Incorrecto", "Rut o DV incorrecto","ok"),"") -> 
B139: =IF(C139<>"",IF(dvrut(A139)="Incorrecto", "Rut o DV incorrecto","ok"),"") -> 
B140: =IF(C140<>"",IF(dvrut(A140)="Incorrecto", "Rut o DV incorrecto","ok"),"") -> 
A141: =IF(C141<>"",_xlfn.CONCAT(C141,"-",D141),"") ->  | B141: =IF(C141<>"",IF(dvrut(A141)="Incorrecto", "Rut o DV incorrecto","ok"),"") -> 
B142: =IF(C142<>"",IF(dvrut(A142)="Incorrecto", "Rut o DV incorrecto","ok"),"") -> 
B143: =IF(C143<>"",IF(dvrut(A143)="Incorrecto", "Rut o DV incorrecto","ok"),"") -> 
B144: =IF(C144<>"",IF(dvrut(A144)="Incorrecto", "Rut o DV incorrecto","ok"),"") -> 
A145: =IF(C145<>"",_xlfn.CONCAT(C145,"-",D145),"") ->  | B145: =IF(C145<>"",IF(dvrut(A145)="Incorrecto", "Rut o DV incorrecto","ok"),"") -> 
B146: =IF(C146<>"",IF(dvrut(A146)="Incorrecto", "Rut o DV incorrecto","ok"),"") -> 
B147: =IF(C147<>"",IF(dvrut(A147)="Incorrecto", "Rut o DV incorrecto","ok"),"") -> 
B148: =IF(C148<>"",IF(dvrut(A148)="Incorrecto", "Rut o DV incorrecto","ok"),"") -> 
B149: =IF(C149<>"",IF(dvrut(A149)="Incorrecto", "Rut o DV incorrecto","ok"),"") -> 
B150: =IF(C150<>"",IF(dvrut(A150)="Incorrecto", "Rut o DV incorrecto","ok"),"") -> 
B151: =IF(C151<>"",IF(dvrut(A151)="Incorrecto", "Rut o DV incorrecto","ok"),"") -> 
B152: =IF(C152<>"",IF(dvrut(A152)="Incorrecto", "Rut o DV incorrecto","ok"),"") -> 
B153: =IF(C153<>"",IF(dvrut(A153)="Incorrecto", "Rut o DV incorrecto","ok"),"") -> 
B154: =IF(C154<>"",IF(dvrut(A154)="Incorrecto", "Rut o DV incorrecto","ok"),"") -> 
B155: =IF(C155<>"",IF(dvrut(A155)="Incorrecto", "Rut o DV incorrecto","ok"),"") -> 
B156: =IF(C156<>"",IF(dvrut(A156)="Incorrecto", "Rut o DV incorrecto","ok"),"") -> 
B157: =IF(C157<>"",IF(dvrut(A157)="Incorrecto", "Rut o DV incorrecto","ok"),"") -> 
B158: =IF(C158<>"",IF(dvrut(A158)="Incorrecto", "Rut o DV incorrecto","ok"),"") -> 
B159: =IF(C159<>"",IF(dvrut(A159)="Incorrecto", "Rut o DV incorrecto","ok"),"") -> 
B160: =IF(C160<>"",IF(dvrut(A160)="Incorrecto", "Rut o DV incorrecto","ok"),"") -> 
B161: =IF(C161<>"",IF(dvrut(A161)="Incorrecto", "Rut o DV incorrecto","ok"),"") -> 
B162: =IF(C162<>"",IF(dvrut(A162)="Incorrecto", "Rut o DV incorrecto","ok"),"") -> 
B163: =IF(C163<>"",IF(dvrut(A163)="Incorrecto", "Rut o DV incorrecto","ok"),"") -> 
B164: =IF(C164<>"",IF(dvrut(A164)="Incorrecto", "Rut o DV incorrecto","ok"),"") -> 
B165: =IF(C165<>"",IF(dvrut(A165)="Incorrecto", "Rut o DV incorrecto","ok"),"") -> 
B166: =IF(C166<>"",IF(dvrut(A166)="Incorrecto", "Rut o DV incorrecto","ok"),"") -> 
B167: =IF(C167<>"",IF(dvrut(A167)="Incorrecto", "Rut o DV incorrecto","ok"),"") -> 
B168: =IF(C168<>"",IF(dvrut(A168)="Incorrecto", "Rut o DV incorrecto","ok"),"") -> 
B169: =IF(C169<>"",IF(dvrut(A169)="Incorrecto", "Rut o DV incorrecto","ok"),"") -> 
B170: =IF(C170<>"",IF(dvrut(A170)="Incorrecto", "Rut o DV incorrecto","ok"),"") -> 
B171: =IF(C171<>"",IF(dvrut(A171)="Incorrecto", "Rut o DV incorrecto","ok"),"") -> 
B172: =IF(C172<>"",IF(dvrut(A172)="Incorrecto", "Rut o DV incorrecto","ok"),"") -> 
B173: =IF(C173<>"",IF(dvrut(A173)="Incorrecto", "Rut o DV incorrecto","ok"),"") -> 
B174: =IF(C174<>"",IF(dvrut(A174)="Incorrecto", "Rut o DV incorrecto","ok"),"") ->  | I174: =IF(C174="","",IF(AND(C174="",D174="",E174="",F174="",G174=""),"Completar datos",IF(AND(B174="ok",C174<>"",D174<>"",E174<>"",F174<>"",G174<>""),"ok","Datos erroneos o incompletos"))) -> 
B175: =IF(C175<>"",IF(dvrut(A175)="Incorrecto", "Rut o DV incorrecto","ok"),"") -> 
B176: =IF(C176<>"",IF(dvrut(A176)="Incorrecto", "Rut o DV incorrecto","ok"),"") -> 
B177: =IF(C177<>"",IF(dvrut(A177)="Incorrecto", "Rut o DV incorrecto","ok"),"") -> 
B178: =IF(C178<>"",IF(dvrut(A178)="Incorrecto", "Rut o DV incorrecto","ok"),"") -> 
B179: =IF(C179<>"",IF(dvrut(A179)="Incorrecto", "Rut o DV incorrecto","ok"),"") -> 
B180: =IF(C180<>"",IF(dvrut(A180)="Incorrecto", "Rut o DV incorrecto","ok"),"") -> 
B181: =IF(C181<>"",IF(dvrut(A181)="Incorrecto", "Rut o DV incorrecto","ok"),"") -> 
B182: =IF(C182<>"",IF(dvrut(A182)="Incorrecto", "Rut o DV incorrecto","ok"),"") -> 
B183: =IF(C183<>"",IF(dvrut(A183)="Incorrecto", "Rut o DV incorrecto","ok"),"") -> 
B184: =IF(C184<>"",IF(dvrut(A184)="Incorrecto", "Rut o DV incorrecto","ok"),"") -> 
B185: =IF(C185<>"",IF(dvrut(A185)="Incorrecto", "Rut o DV incorrecto","ok"),"") -> 
B186: =IF(C186<>"",IF(dvrut(A186)="Incorrecto", "Rut o DV incorrecto","ok"),"") -> 
B187: =IF(C187<>"",IF(dvrut(A187)="Incorrecto", "Rut o DV incorrecto","ok"),"") -> 
B188: =IF(C188<>"",IF(dvrut(A188)="Incorrecto", "Rut o DV incorrecto","ok"),"") -> 
B189: =IF(C189<>"",IF(dvrut(A189)="Incorrecto", "Rut o DV incorrecto","ok"),"") -> 
B190: =IF(C190<>"",IF(dvrut(A190)="Incorrecto", "Rut o DV incorrecto","ok"),"") -> 
B191: =IF(C191<>"",IF(dvrut(A191)="Incorrecto", "Rut o DV incorrecto","ok"),"") -> 
B192: =IF(C192<>"",IF(dvrut(A192)="Incorrecto", "Rut o DV incorrecto","ok"),"") -> 
B193: =IF(C193<>"",IF(dvrut(A193)="Incorrecto", "Rut o DV incorrecto","ok"),"") -> 
B194: =IF(C194<>"",IF(dvrut(A194)="Incorrecto", "Rut o DV incorrecto","ok"),"") -> 
B195: =IF(C195<>"",IF(dvrut(A195)="Incorrecto", "Rut o DV incorrecto","ok"),"") -> 
B196: =IF(C196<>"",IF(dvrut(A196)="Incorrecto", "Rut o DV incorrecto","ok"),"") -> 
B197: =IF(C197<>"",IF(dvrut(A197)="Incorrecto", "Rut o DV incorrecto","ok"),"") -> 
B198: =IF(C198<>"",IF(dvrut(A198)="Incorrecto", "Rut o DV incorrecto","ok"),"") -> 
B199: =IF(C199<>"",IF(dvrut(A199)="Incorrecto", "Rut o DV incorrecto","ok"),"") -> 
B200: =IF(C200<>"",IF(dvrut(A200)="Incorrecto", "Rut o DV incorrecto","ok"),"") -> 
B201: =IF(C201<>"",IF(dvrut(A201)="Incorrecto", "Rut o DV incorrecto","ok"),"") -> 
B202: =IF(C202<>"",IF(dvrut(A202)="Incorrecto", "Rut o DV incorrecto","ok"),"") -> 
B203: =IF(C203<>"",IF(dvrut(A203)="Incorrecto", "Rut o DV incorrecto","ok"),"") -> 
B204: =IF(C204<>"",IF(dvrut(A204)="Incorrecto", "Rut o DV incorrecto","ok"),"") -> 
B205: =IF(C205<>"",IF(dvrut(A205)="Incorrecto", "Rut o DV incorrecto","ok"),"") -> 
B206: =IF(C206<>"",IF(dvrut(A206)="Incorrecto", "Rut o DV incorrecto","ok"),"") -> 
B207: =IF(C207<>"",IF(dvrut(A207)="Incorrecto", "Rut o DV incorrecto","ok"),"") -> 
B208: =IF(C208<>"",IF(dvrut(A208)="Incorrecto", "Rut o DV incorrecto","ok"),"") -> 
A209: =IF(C209<>"",_xlfn.CONCAT(C209,"-",D209),"") ->  | B209: =IF(C209<>"",IF(dvrut(A209)="Incorrecto", "Rut o DV incorrecto","ok"),"") -> 
B210: =IF(C210<>"",IF(dvrut(A210)="Incorrecto", "Rut o DV incorrecto","ok"),"") -> 
B211: =IF(C211<>"",IF(dvrut(A211)="Incorrecto", "Rut o DV incorrecto","ok"),"") -> 
B212: =IF(C212<>"",IF(dvrut(A212)="Incorrecto", "Rut o DV incorrecto","ok"),"") -> 
B213: =IF(C213<>"",IF(dvrut(A213)="Incorrecto", "Rut o DV incorrecto","ok"),"") -> 
B214: =IF(C214<>"",IF(dvrut(A214)="Incorrecto", "Rut o DV incorrecto","ok"),"") -> 
B215: =IF(C215<>"",IF(dvrut(A215)="Incorrecto", "Rut o DV incorrecto","ok"),"") -> 
B216: =IF(C216<>"",IF(dvrut(A216)="Incorrecto", "Rut o DV incorrecto","ok"),"") -> 
... 328 more rows

Sheet Salida_Solicitud (hidden)
C4: Ingrese los datos de Cotización
B6: Cantidad Reg act | C6: 0 | E6: Check general | F6: Contador v2 | G6: Fecha | H6: 2021-05-31
C8: 1. CONTRATANTE / EMPLEADOR | H8: precio final
C9: RUT (SIN PUNTOS,SIN DV)
C10: DIGITO VERIFICADOR
C11: NOMBRE/RAZON SOCIAL
C12: APELLIDO PATERNO
C13: APELLIDO MATERNO
C14: CALLE / DIRECCIÓN
C15: COMUNA
C16: E-MAIL CONTRATANTE
G25: -
C26: 2.TARIFA
C27: TARIFA NETA UNITARIA UF
C28: TARIFA FINAL (BRUTA) UF
C30: 3.OTROS
C31: FECHA DE INICIO
C32: FECHA DE TERMINO
C34: CANTIDAD DE ASEGURADOS
C35: PRIMA TOTAL A PAGAR UF
C36: PRIMA TOTAL A TRANSFERIR $
C38: CODIGO DE SOLICITUD
I42: 0
C43: ASEGURADO MULTIPLES
C44: RUT | D44: DV | E44: Nombre | F44: Apellido Paterno | G44: Apellido Materno | H44: Email Asegurado

Sheet PARAMETROS (hidden)
A1: COMUNA | C1: Codigo de Formulario | E1: Comisiones | H1: Codigo Intermediario | I1: Intermediario | J1: CODIGO DE SUCURSAL | K1: Sucursal | M1: FECHA | N1: VALOR UF
C2: 1 | E2: 0 | I2: SERVICIO AL CLIENTE | J2: 23 | K2: HDI.CL | M2: 2021-06-01 | N2: 29617.07
E3: 0.01 | H3: 1002 | I3: DIRECTO ANTOFAGASTA | J3: 3 | K3: Antofagasta | M3: =M2+1 -> 2021-06-02 | N3: 29620.88
E4: 0.02 | H4: 1011 | I4: DIRECTO LA FLORIDA | J4: 15 | K4: HDI Santiago | M4: =M3+1 -> 2021-06-03 | N4: 29624.7
E5: 0.03 | H5: 499 | I5: PALMA ROSSEL,HECTOR MANUEL | J5: 1 | K5: Advance | M5: 2021-06-04 | N5: 29628.51
E6: 0.04 | H6: 500 | I6: CERDA MUNOZ,LEONARDO PATRICIO | J6: 1 | K6: Advance | M6: 2021-06-05 | N6: 29632.33
E7: 0.05 | H7: 504 | I7: MELA FARIAS,PATRICIA | J7: 1 | K7: Advance | M7: 2021-06-06 | N7: 29636.15
E8: =E7+0.01 -> 0.06 | H8: 22 | I8: ROTHENBURG VILLEGAS,GRETEL | J8: 1 | K8: Advance | M8: 2021-06-07 | N8: 29639.96
E9: =E8+0.01 -> 0.07 | H9: 3 | I9: QUIROZ LARREA,ARACELI ERNESTINA | J9: 1 | K9: Advance | M9: 2021-06-08 | N9: 29643.78
E10: 0.08 | H10: 40 | I10: TORRES VIVANCO,GLORIA ELSA | J10: 1 | K10: Advance | M10: 2021-06-09 | N10: 29647.6
E11: 0.09 | H11: 5 | I11: VILLAGRAN NORAMBUENA,ERWIN WILSON | J11: 7 | K11: Temuco | M11: 2021-06-10 | N11: 29650.56
E12: 0.1 | H12: 3343 | I12: CALISTO SILVA,JOSE ORLANDO | J12: 9 | K12: Puerto Montt | M12: 2021-06-11 | N12: 29653.52
H13: 7003 | I13: ROTHENBURG VILLEGAS,GRETEL | J13: 1 | K13: Advance | M13: 2021-06-12 | N13: 29656.48
H14: 3477 | I14: MORENO OYARZUN,ANA XIMENA | J14: 31 | K14: HDI Club | M14: 2021-06-13 | N14: 29659.44
H15: 3718 | I15: GONZALEZ SILVA,CARLOS ELIAS | J15: 4 | K15: Viña del Mar | M15: 2021-06-14 | N15: 29662.41
H16: 3844 | I16: ARRIOLA CORTEZ,NELLY DEL CARMEN | J16: 4 | K16: Viña del Mar | M16: 2021-06-15 | N16: 29665.37
H17: 3228 | I17: VERDUGO CAMPOS,ANA LUISA | J17: 31 | K17: HDI Club | M17: 2021-06-16 | N17: 29668.33
H18: 4071 | I18: CUMSILLE PIDDO,CARMEN GLORIA | J18: 41 | K18: Rancagua | M18: 2021-06-17 | N18: 29671.29
H19: 4001 | I19: CORNEJO HOFMANN,ANA MARIA | J19: 15 | K19: HDI Santiago | M19: 2021-06-18 | N19: 29674.25
H20: 3561 | I20: OJEDA ULLOA,JAIME ENRIQUE | J20: 15 | K20: HDI Santiago | M20: 2021-06-19 | N20: 29677.22
H21: 2489 | I21: CESAR VALLEJO MARTINOLLI Y CIA. LTDA. | J21: 1 | K21: Advance | M21: 2021-06-20 | N21: 29680.18
H22: 3441 | I22: BORDACHAR HENNING,DOMINGO ALFREDO | J22: 31 | K22: HDI Club | M22: 2021-06-21 | N22: 29683.15
H23: 4313 | I23: HERRERA MENDEZ,GASTON ANDRES | J23: 6 | K23: Concepción | M23: 2021-06-22 | N23: 29686.11
H24: 3274 | I24: MOREY LAZO,PEDRO JOSE | J24: 31 | K24: HDI Club | M24: 2021-06-23 | N24: 29689.07
H25: 4057 | I25: MOLL SUREDA,MARIA ELVIRA | J25: 3 | K25: Antofagasta | M25: 2021-06-24 | N25: 29692.04
H26: 3720 | I26: MOTTA YANEZ,ELIZABETH BERTA | J26: 2 | K26: Iquique | M26: 2021-06-25 | N26: 29695
H27: 3973 | I27: EDWARDS EDWARDS,JOSE MANUEL | J27: 53 | K27: Partners | M27: 2021-06-26 | N27: 29697.97
H28: 3332 | I28: JEREZ LAGOS,FERNANDO | J28: 31 | K28: HDI Club | M28: 2021-06-27 | N28: 29700.93
H29: 3215 | I29: VERCELLINO VRANCKEN,LUCIA ADELAIDA | J29: 31 | K29: HDI Club | M29: 2021-06-28 | N29: 29703.9
H30: 3715 | I30: POBLETE ROJAS,HERNAN | J30: 15 | K30: HDI Santiago | M30: 2021-06-29 | N30: 29706.87
H31: 4449 | I31: ANDRES TOLEDO,ARISTEO DOMINGO | J31: 15 | K31: HDI Santiago | M31: 2021-06-30 | N31: 29709.83
H32: 3140 | I32: PEREZ GARCIA,CARLOS JOAQUIN | J32: 31 | K32: HDI Club | M32: =M31+1 -> 2021-07-01 | N32: 29712.8
H33: 4264 | I33: MONTENEGRO VERA,OMAR | J33: 45 | K33: Osorno | M33: 2021-07-02 | N33: 29715.77
H34: 3724 | I34: LLOYD ROCHA,NORA ROSA | J34: 2 | K34: Iquique | M34: =M33+1 -> 2021-07-03 | N34: 29718.73
H35: 4195 | I35: CORREA BRITO,HECTOR RAUL | J35: 4 | K35: Viña del Mar | M35: 2021-07-04 | N35: 29721.7
H36: 4247 | I36: TEKE PIERA,MIGUEL ALEJANDRO | J36: 9 | K36: Puerto Montt | M36: 2021-07-05 | N36: 29724.67
H37: 3773 | I37: BOHN SAUTEREL,BERTHOLD ERWIN | J37: 7 | K37: Temuco | M37: 2021-07-06 | N37: 29727.64
H38: 3368 | I38: ALDUNATE BOSSAY,CLIMENE MARIA | J38: 31 | K38: HDI Club | M38: 2021-07-07 | N38: 29730.6
H39: 3862 | I39: GONZALEZ VALDIVIA,MANUEL ASVILDO | J39: 2 | K39: Iquique | M39: 2021-07-08 | N39: 29733.57
H40: 3900 | I40: SIPPA OYARCE,GLADYS CECILIA | J40: 3 | K40: Antofagasta | M40: 2021-07-09 | N40: 29736.54
H41: 4429 | I41: SALINAS JIMENEZ,PABLO | J41: 17 | K41: La Serena | M41: =M40+1 -> 2021-07-10
H42: 3207 | I42: ZAMORA TORRES,LAUTARO DANIEL | J42: 41 | K42: Rancagua | M42: 2021-07-11
H43: 4404 | I43: PULGAR ROJAS,DAVID ORLANDO | J43: 80 | K43: HDI Comercial | M43: 2021-07-12
H44: 4070 | I44: BARBE ILIC,EDUARDO ALBERTO | J44: 15 | K44: HDI Santiago | M44: 2021-07-13
H45: 3405 | I45: TORRES ISLA,ANA AURORA | J45: 7 | K45: Temuco | M45: 2021-07-14
H46: 3918 | I46: SILVA KRAEMER,CESAR CARLOS | J46: 3 | K46: Antofagasta | M46: 2021-07-15
H47: 3993 | I47: ZLATAR CAMPILLAY,BLAS GREGORIO | J47: 3 | K47: Antofagasta | M47: 2021-07-16
H48: 4401 | I48: BUSTAMANTE VIDELA,ROGELIO SEGUNDO | J48: 6 | K48: Concepción | M48: 2021-07-17
H49: 3421 | I49: ARIAS ANTIVILO,ANDRES FERNANDO | J49: 3 | K49: Antofagasta | M49: 2021-07-18
H50: 3825 | I50: VELASQUEZ SALAH,ANTONIO SEGUNDO | J50: 31 | K50: HDI Club | M50: 2021-07-19
H51: 4357 | I51: ACORIA OLMOS,BERNARDO | J51: 15 | K51: HDI Santiago | M51: 2021-07-20
H52: 4133 | I52: RECABARREN PONCE,MARTA BEATRIZ | J52: 31 | K52: HDI Club | M52: 2021-07-21
H53: 4108 | I53: GONZALEZ REBOLLEDO,PEDRO VICENTE | J53: 7 | K53: Temuco | M53: 2021-07-22
H54: 3875 | I54: MUNOZ INFANTA,MARCO ARIEL | J54: 31 | K54: HDI Club | M54: 2021-07-23
H55: 3912 | I55: CARVAJAL WILSON,LINO DOMINGO | J55: 2 | K55: Iquique | M55: 2021-07-24
H56: 4003 | I56: URZUA BECERRA,NABOR OSVALDO | J56: 7 | K56: Temuco | M56: 2021-07-25
H57: 3815 | I57: INDO PONTIGO,OSCAR | J57: 3 | K57: Antofagasta | M57: 2021-07-26
H58: 3702 | I58: CASTRO BORQUEZ,ORESTES | J58: 7 | K58: Temuco | M58: 2021-07-27
H59: 3422 | I59: BERGER PALLOMARI,SERGIO GUILLERMO | J59: 3 | K59: Antofagasta | M59: 2021-07-28
H60: 3887 | I60: LYON OSSA,BARBARA | J60: 1 | K60: Advance
H61: 4084 | I61: SAAVEDRA RODRIGUEZ,ERNESTO PATRICIO | J61: 15 | K61: HDI Santiago
H62: 3512 | I62: HABERT CARRILLO,WALTER NELSON | J62: 7 | K62: Temuco
H63: 4297 | I63: VELASQUEZ SALAH,GUSTAVO ALFONSO | J63: 31 | K63: HDI Club
H64: 3165 | I64: SEPULVEDA MOYA,MANUEL GONZALO | J64: 4 | K64: Viña del Mar
H65: 3834 | I65: GUAMAN CESPEDES,ANTONIO | J65: 3 | K65: Antofagasta
H66: 3807 | I66: VASQUEZ ECHEVERRIA,ADRIANA ISABEL | J66: 4 | K66: Viña del Mar
H67: 3902 | I67: PINCHEIRA SOTO,ARNALDO ALFONSO | J67: 7 | K67: Temuco
H68: 3831 | I68: NUALART GONZALEZ,CARMEN MARIA ALEJAN | J68: 7 | K68: Temuco
H69: 4338 | I69: JIMENEZ MARTIN,ANSELMO | J69: 7 | K69: Temuco
H70: 4002 | I70: BARRENECHEA BARRIA,SANDRA ROSALBA | J70: 7 | K70: Temuco
H71: 3301 | I71: MANTEROLA VALDES,JAIME ANDRES | J71: 15 | K71: HDI Santiago
H72: 4007 | I72: MARTINEZ ASSMANN,SARA TERESA DE LOUR | J72: 15 | K72: HDI Santiago
H73: 4249 | I73: VALDES MILLAN,SERGIO MANUEL | J73: 15 | K73: HDI Santiago
H74: 3728 | I74: SILVA CHACON,NORMA ELENA | J74: 2 | K74: Iquique
H75: 4092 | I75: HEVIA ALZERRECA,GLORIA MARISOL | J75: 31 | K75: HDI Club
H76: 3586 | I76: FARIAS SALINAS,ALEJANDRA TEAMAR | J76: 3 | K76: Antofagasta
H77: 3243 | I77: CASTELLANO BAHAMONDES,JOSE IGNACIO | J77: 31 | K77: HDI Club
H78: 4227 | I78: DATTWYLER VIDAURRE,GLORIA ANGELICA | J78: 4 | K78: Viña del Mar
H79: 4061 | I79: CORTES TORO,ROLANDO ALIRO | J79: 17 | K79: La Serena
H80: 4068 | I80: CONTRERAS PEREZ,NELLA LUISA | J80: 15 | K80: HDI Santiago
H81: 4184 | I81: CAMPOS GUTIERREZ,ALEJANDRO FELIX | J81: 15 | K81: HDI Santiago
H82: 3609 | I82: ANDERS PEREZ,CLAUDIO HERNAN | J82: 7 | K82: Temuco
H83: 4406 | I83: CAMPILLAY VITALI,SERGIO BERNARDO | J83: 17 | K83: La Serena
H84: 4331 | I84: CERDA PARDO,SUSANA DE LAS MERCED | J84: 6 | K84: Concepción
H85: 3523 | I85: CASTANEDA CUEVAS,ELENA DEL ROSARIO | J85: 3 | K85: Antofagasta
H86: 3936 | I86: MARTI CONTRERAS,LLINOS ANTONIO | J86: 7 | K86: Temuco
H87: 3784 | I87: ONELL LUCERO,SERGIO | J87: 2 | K87: Iquique
H88: 3882 | I88: HENRIQUEZ DIAZ,CESAR ALEJANDRO | J88: 3 | K88: Antofagasta
H89: 4387 | I89: GALLEGUILLOS AHUMADA,EMA ISABEL | J89: 6 | K89: Concepción
H90: 4189 | I90: SUSPERREGUY ROBLES,BRUNILDA CARMEN | J90: 7 | K90: Temuco
H91: 3734 | I91: ARENAS AGUILERA,HECTOR HERNAN | J91: 41 | K91: Rancagua
H92: 4022 | I92: CANAS PINOCHET,CLAUDIA ANDREA | J92: 31 | K92: HDI Club
H93: 3979 | I93: SOSSDORF GONZALEZ,SANDRA CECILIA | J93: 4 | K93: Viña del Mar
H94: 3714 | I94: HOLVOET CASTILLO,MARIA SOLEDAD DEL T | J94: 17 | K94: La Serena
H95: 4274 | I95: OBILINOVIC GONZALEZ,YASNA ANDREA | J95: 2 | K95: Iquique
H96: 3700 | I96: VALLEJOS VALLEJOS,NADIA ANDREA | J96: 7 | K96: Temuco
H97: 4100 | I97: ABBOTT SANCHEZ,JUAN CARLOS | J97: 4 | K97: Viña del Mar
H98: 3270 | I98: SANCHEZ GRACIA,FERNANDO | J98: 15 | K98: HDI Santiago
H99: 3716 | I99: LANDAETA ALVIAL,HUGO RENE | J99: 7 | K99: Temuco
H100: 4296 | I100: SALAZAR LOPEZ,CLAUDIO DIEGO | J100: 3 | K100: Antofagasta
H101: 4326 | I101: BORDONES DIAZ,DOMINGO ENRIQUE | J101: 3 | K101: Antofagasta
H102: 4241 | I102: ZAMORANO DELUCCHI,GLORIA MARIA | J102: 31 | K102: HDI Club
H103: 3589 | I103: ARANCIBIA OLIVARES,CARMEN DEL PILAR | J103: 4 | K103: Viña del Mar
H104: 3867 | I104: BRUNA LAZARO,MIGUEL SEGUNDO | J104: 2 | K104: Iquique
H105: 3805 | I105: ALVAREZ CASTANEDA,RAMONA MARLENE | J105: 4 | K105: Viña del Mar
H106: 4020 | I106: CORONA VILLAR,NELSON CARLOS | J106: 2 | K106: Iquique
H107: 2437 | I107: NEEDHAM & ASOCIADOS CORRED.DE SEGUROS | J107: 15 | K107: HDI Santiago
H108: 2448 | I108: SANZ Y NEIRA CORREDORES DE SEGUROS LTDA. | J108: 9 | K108: Puerto Montt
H109: 2457 | I109: SEGUROS FALABELLA CORREDORES LIMITADA | J109: 91 | K109: CM Falabella
H110: 2474 | I110: BEL PRODUCTORES DE SEGUROS LIMITADA | J110: 7 | K110: Temuco
H111: 2459 | I111: CORREDORES DE SEGUROS ALERCE LTDA. | J111: 31 | K111: HDI Club
H112: 2465 | I112: CORRED. DE SEGUROS PORTFOLIO LTDA. | J112: 7 | K112: Temuco
H113: 2426 | I113: SERVICIOS INTEGRALES Y CORRETAJES DE SEG | J113: 31 | K113: HDI Club
H114: 2315 | I114: PROD. SEG. JORGE ACUÑA D Y COMPAÑIA LTDA | J114: 7 | K114: Temuco
H115: 2468 | I115: OTTONE Y GUZMAN LTDA | J115: 15 | K115: HDI Santiago
H116: 2433 | I116: CORREDORES DE SEGUROS VOIPIR LTDA. | J116: 7 | K116: Temuco
H117: 2452 | I117: LUIS ARTURO IBARRA Y CIA. LTDA. | J117: 1 | K117: Advance
H118: 2350 | I118: JOFRE Y GUZMAN LIMITADA | J118: 4 | K118: Viña del Mar
H119: 2359 | I119: PROD.SEG.VERONICA FLETCHER Y CIA. LTDA.- | J119: 15 | K119: HDI Santiago
H120: 2341 | I120: WALKER Y CIA LTDA. | J120: 15 | K120: HDI Santiago
H121: 2369 | I121: GUILLERMO ACUNA M. Y CIA. LTDA.- | J121: 3 | K121: Antofagasta
H122: 2443 | I122: JERIA Y CIA. CORREDORES DE SEGUROS LTDA. | J122: 2 | K122: Iquique
H123: 2420 | I123: CORREDORA PROFESIONAL DE SEGUROS LTDA. | J123: 4 | K123: Viña del Mar
H124: 2425 | I124: PRODUCTORA DE SEGUROS PIAMONTE LTDA. | J124: 7 | K124: Temuco
H125: 2430 | I125: SOC. PRODUCTORA DE SEG. DEL SUR LTDA. | J125: 5 | K125: Talca
H126: 2169 | I126: SOC.COM.PROD.DE SEG. VOLCAN LLAIMA LTDA. | J126: 7 | K126: Temuco
H127: 2434 | I127: ASESORES DE SEG. CAYUL Y MARTINEZ LTDA | J127: 9 | K127: Puerto Montt
H128: 4044 | I128: SCHORR SEPULVEDA,CLAUDIO ENRIQUE | J128: 5 | K128: Talca
H129: 3785 | I129: BOOK ITURRIAGA,CIRO CESAR | J129: 6 | K129: Concepción
H130: 4165 | I130: SPOERER O'REILLY,GUSTAVO ARTURO | J130: 6 | K130: Concepción
H131: 4021 | I131: ROJAS CIFUENTES,ANGEL SEGUNDO | J131: 5 | K131: Talca
H132: 4124 | I132: ACEVEDO DEL REAL,PEDRO ROBERTO | J132: 6 | K132: Concepción
H133: 3697 | I133: CERDA BOYD,SERGIO MARIO | J133: 31 | K133: HDI Club
H134: 4085 | I134: MORALES GUEVARA,ROBERTO BENITO | J134: 5 | K134: Talca
H135: 4155 | I135: ZAPATA VALDERRAMA,LAURA | J135: 6 | K135: Concepción
H136: 4113 | I136: BAHAMONDEZ LOPEZ,MARIO JACINTO | J136: 6 | K136: Concepción
H137: 4156 | I137: GELMI SILVA,JAIME ENRIQUE | J137: 5 | K137: Talca
H138: 4121 | I138: VALDERRAMA DEL PINO,RENATO ALBERTO | J138: 44 | K138: Los Angeles
H139: 3528 | I139: REBOLLEDO ARRIAGADA,LUIS ADOLFO | J139: 6 | K139: Concepción
H140: 2358 | I140: MELKONIAN PEREIRA,ALBERTO GASPAR | J140: 31 | K140: HDI Club
H141: 3848 | I141: CERDA CANDIA,LUIS ALBERTO OMAR | J141: 6 | K141: Concepción
H142: 3969 | I142: FUENTES BORQUEZ,EDUARDO ERNESTO | J142: 6 | K142: Concepción
H143: 2174 | I143: PROD. SEGUROS GAETE Y CIA. LTDA. | J143: 4 | K143: Viña del Mar
H144: 2431 | I144: CORREDORA DE SEGUROS A & C LTDA. | J144: 6 | K144: Concepción
H145: 2206 | I145: MARSH S.A. CORREDORES DE SEGUROS | J145: 38 | K145: Corporate
H146: 2009 | I146: ARAYA Y MIRANDA PRODUCT. DE SEGUROS | J146: 31 | K146: HDI Club
H147: 2059 | I147: PROD. DE SEG. ASOCIADOS LTDA. (PRODESA) | J147: 53 | K147: Partners
H148: 2301 | I148: SOC PRODUCTORA DE SEGUROS OCTAVIO ARRATI | J148: 2 | K148: Iquique
H149: 2450 | I149: SOC. PRODUCT. DE SEGUROS A. CIRAOLO Y CI | J149: 1 | K149: Advance
H150: 2446 | I150: BCI CORREDORES DE SEGUROS S.A. | J150: 94 | K150: Banca Seguros
H151: 2414 | I151: SOC AGRICOLA COMERCIAL Y DE SEGUROS CENT | J151: 45 | K151: Osorno
H152: 2219 | I152: RSG RISK SOL GROUP CHILE CORR DE SEG S.A | J152: 38 | K152: Corporate
H153: 2234 | I153: TAS CORREDORES DE SEGUROS S.A. | J153: 1 | K153: Advance
H154: 4097 | I154: VEGA IMAS,LUIS ALFREDO | J154: 5 | K154: Talca
H155: 3911 | I155: HERNANDEZ BENAVENTE,RICARDO BORIS | J155: 6 | K155: Concepción
H156: 3935 | I156: CARTES OSORIO,HANS CAMILO | J156: 6 | K156: Concepción
H157: 3989 | I157: DEL SOLAR DONOSO,ANITA MARIA | J157: 5 | K157: Talca
H158: 3594 | I158: RODRIGUEZ GUERRERO,SONIA MARGARITA | J158: 41 | K158: Rancagua
H159: 3598 | I159: GOMEZ BRAVO,CARMEN GLORIA | J159: 5 | K159: Talca
H160: 3976 | I160: ROJAS MENDOZA,HECTOR EUGENIO | J160: 5 | K160: Talca
H161: 3642 | I161: ESPINOZA GUTIERREZ,JORGE GABRIEL | J161: 5 | K161: Talca
H162: 3576 | I162: HENNING FIGUEROA,FRANCISCO JAVIER | J162: 6 | K162: Concepción
H163: 3980 | I163: MONTESINO PARRA,MARIA ENRIQUETA | J163: 6 | K163: Concepción
H164: 3981 | I164: NEIRA WACHTENDORFF,JORGE ANTONIO | J164: 6 | K164: Concepción
H165: 2008 | I165: JARA JORQUERA,JORGE ZENON | J165: 6 | K165: Concepción
H166: 2477 | I166: HANNA CORREDORES DE SEGUROS CIA. LTDA. | J166: 1 | K166: Advance
H167: 2333 | I167: LUIS HERNAN POBLETE F. Y ASOCIADOS | J167: 15 | K167: HDI Santiago
H168: 2295 | I168: VERITA CORREDORES DE SEGUROS LTDA | J168: 15 | K168: HDI Santiago
H169: 2374 | I169: PROD. Y CORR.SEG. MARÍA E. LARRAÍN LTDA. | J169: 5 | K169: Talca
H170: 2379 | I170: SOC. MARIA EUGENIA CORREA Y CIA LTDA. | J170: 5 | K170: Talca
H171: 2428 | I171: CSV CORREDORES DE SEGUROS LTDA. | J171: 15 | K171: HDI Santiago
H172: 2435 | I172: ORBITAL JLT CORREDORES DE SEGUROS LTDA. | J172: 38 | K172: Corporate
H173: 2438 | I173: BICE CORREDORES DE SEGUROS LTDA. | J173: 94 | K173: Banca Seguros
H174: 2178 | I174: PRODUCTORA DE SEGUROS ACONCAGUA S.A. | J174: 1 | K174: Advance
H175: 2303 | I175: CARLOS GLEISER LTDA. | J175: 15 | K175: HDI Santiago
H176: 2209 | I176: ETCHEPARE Y HONORATO | J176: 53 | K176: Partners
H177: 2179 | I177: MARIA CARMEN CORDERO Y CIA. | J177: 6 | K177: Concepción
H178: 2144 | I178: LA POLAR CORREDORES DE SEGUROS LTDA. | J178: 16 | K178: CM Compara Online
H179: 2202 | I179: DALY Y CIA. LTDA. | J179: 1 | K179: Advance
H180: 2156 | I180: SOC. PRODUCTORA DE SEGUROS DEL CENTRO LT | J180: 5 | K180: Talca
H181: 2410 | I181: SEGUROS ZAVELEV LTDA. | J181: 31 | K181: HDI Club
H182: 2344 | I182: GUSTAVO A MONTES Y CIA LIMITADA CORREDOR | J182: 1 | K182: Advance
H183: 2163 | I183: ORTUZAR CORREDORES DE SEGUROS SPA | J183: 31 | K183: HDI Club
H184: 2339 | I184: LUIS GIOVANI BUSTOS CIA. LTDA. | J184: 15 | K184: HDI Santiago
H185: 2216 | I185: PROA-SEGUROS LIMITADA | J185: 1 | K185: Advance
H186: 2196 | I186: SICURTA LTDA. | J186: 31 | K186: HDI Club
H187: 2056 | I187: SERGIO POBLETE CORREDORES DE SEGUROS SPA | J187: 1 | K187: Advance
H188: 2032 | I188: R. GARCIA DE LA HUERTA B. Y CIA LTDA. | J188: 53 | K188: Partners
H189: 2370 | I189: LILIENFELD, CORREDORES DE SEGUROS LTDA. | J189: 38 | K189: Corporate
H190: 2347 | I190: PROD DE SEGUROS MARIO MANTILLA LTD | J190: 15 | K190: HDI Santiago
H191: 2134 | I191: MARIO CERNA Y CIA. LTDA. | J191: 6 | K191: Concepción
H192: 2114 | I192: SOC. PROD. DE SEGUROS VIAL E HIJA LTDA. | J192: 41 | K192: Rancagua
H193: 2047 | I193: PRODUCTORA DE SEGUROS LOHSE Y CIA. LTDA. | J193: 31 | K193: HDI Club
H194: 2351 | I194: VORBEZA CORRED.DE SEGUROS | J194: 15 | K194: HDI Santiago
H195: 2165 | I195: AGENCIAS BRINER CORRED. DE SEGUROS SPA | J195: 15 | K195: HDI Santiago
H196: 2380 | I196: LIDIA NUÑEZ Y CIA. LTDA. | J196: 1 | K196: Advance
H197: 2035 | I197: ASESORA DE SEGUROS HUELEN LTDA. | J197: 31 | K197: HDI Club
H198: 2019 | I198: AON RISK SERVICES (CHILE) COR. SEG. LTD. | J198: 38 | K198: Corporate
H199: 3454 | I199: REINOSO REINOSO,LUIS ARTURO | J199: 4 | K199: Viña del Mar
H200: 3291 | I200: ACUNA CARMONA,JORGE ARTURO | J200: 6 | K200: Concepción
... 1951 more rows

Sheet Validaciones (hidden)
B1: Campo | C1: Valores
A4: 1. | B4: DIA DE VENCIMIENTO | C4: 5
C5: 10
C6: 15
C7: 20
C8: 25
A11: 2 | B11: Tipo facturacion | C11: SIN FACTURA
C12: FACTURA POST-PAGO
C13: FACTURA PRE-PAGO
A16: 3 | B16: Forma de pago | C16: PAC
C17: TARJETA
C18: BOLETIN
C19: DESC% POR PLANILLA
C20: PRE-PAGO
A21: 4 | B21: Tipo persona | C21: Natural
C22: Jurídica
A23: 5 | B23: Sexo | C23: Masculino
C24: Femenino
A25: 6 | B25: Grupo etario | C25: 18 | D25: 49 | E25: Grupo 1
C26: 50 | D26: 59 | E26: Grupo 2
C27: 60 | D27: 69 | E27: Grupo 3
C29: Comision de acuerdo a selección prima | J29: Limites | L29: % com
A30: Validador | B30: =Solicitud!E35*(1-Solicitud!#REF!) ->  | C30: =ROUND((Solicitud!E35/K30),2)-1+10% -> -0.9 | F30: 0.42 | G30: 0.05 | J30: P maxima | K30: 0.42 | L30: 0
B31: =B30*1.1 ->  | C31: =IF(C30>10%,10%,C30) -> -0.9 | D31: Comision a usar de acuerdo prima | F31: =F30*0.95 -> 0.399 | J31: Pmin | K31: =K30*0.9 -> 0.378 | L31: 10 | M31: debe ser 10 comision
A34: Vigencia maxima desde cotizacion | C34: Dias cot vs Días hoy | D34: Días Limite | L34: 0.57 | M34: =1-L34 -> 0.43
B35: Fecha hoy | C35: =(Solicitud!E31-TODAY()) -> -44357 | D35: 10 | L35: Hospitalizacion | M35: Muerte
J36: Prima de Riesgo | K36: 0.25 | L36: =ROUND(K36*L34,3) -> 0.143 | M36: =K36-L36 -> 0.107 | N36: =K36-L36-M36 -> 0
I37: 0.15 | J37: Gastos | K37: =ROUND(K$36/(1-SUM($I$37:$I$39))*$I37,3) -> 0.058 | L37: =ROUND(L$36/(1-SUM($I$37:$I$39))*$I37,3) -> 0.033 | M37: 0.025 | N37: =K37-L37-M37 -> 0
I38: 0.204 | J38: Margen | K38: =ROUND(K$36/(1-SUM($I$37:$I$39))*$I38,3) -> 0.079 | L38: 0.045 | M38: =ROUND(M$36/(1-SUM($I$37:$I$39))*$I38,3) -> 0.034 | N38: =K38-L38-M38 -> 0
I39: 0 | J39: Comision | K39: =ROUND(K$36/(1-SUM($I$37:$I$39))*$I39,3) -> 0 | L39: 0 | M39: 0 | N39: =K39-L39-M39 -> 0
J40: Prima Neta | K40: =SUM(K36:K39) -> 0.387 | L40: =SUM(L36:L39) -> 0.221 | M40: 0.166 | N40: =K40-L40-M40 -> 0
